fUSD/lending_fUSD_20250111
["ID","MTS","AMOUNT","RATE_DAILY","PERIOD"]
[348487513,1736572240732,-500.0,9.999e-05,2]
[348487514,1736572240742,-500.0,9.999e-05,2]
[348487515,1736572240752,-500.0,9.999e-05,2]
[348487516,1736572240763,-1089.71,9.999e-05,2]
[348487517,1736572240774,-500.0,9.999e-05,2]
[348487518,1736572240785,-500.0,9.999e-05,2]
[348487519,1736572240795,-500.0,9.999e-05,2]
[348487520,1736572240806,-500.0,9.999e-05,2]
[348487521,1736572240816,-268.67846729,9.999e-05,2]
[348487522,1736572240827,-500.0,9.999e-05,2]
[348487523,1736572240838,-500.0,9.999e-05,2]
[348487524,1736572240848,-520.20504165,9.999e-05,2]
[348487525,1736572240859,-500.0,9.999e-05,2]
[348487526,1736572240869,-579.01988388,9.999e-05,2]
[348487527,1736572240880,-500.0,9.999e-05,2]
[348487528,1736572240891,-595.24,9.999e-05,2]
[348487529,1736572240903,-500.0,9.999e-05,2]
[348487530,1736572240914,-539.04,9.999e-05,2]
[348487531,1736572240924,-500.0,9.999e-05,2]
[348487532,1736572240936,-502.51993501,9.999e-05,2]
[348487533,1736572240946,-500.0,9.999e-05,2]
[348487534,1736572240956,-1591.72,9.999e-05,2]
[348487535,1736572240968,-500.0,9.999e-05,2]
[348487536,1736572240981,-500.0,9.999e-05,2]
[348487537,1736572240991,-500.0,9.999e-05,2]
[348487538,1736572241001,-500.0,9.999e-05,2]
[348487539,1736572241011,-654.06,9.999e-05,2]
[348487540,1736572241021,-500.0,9.999e-05,2]
[348487541,1736572241035,-500.0,9.999e-05,2]
[348487542,1736572241046,-500.0,9.999e-05,2]
[348487543,1736572241056,-505.33654036,9.999e-05,2]
[348487544,1736572241067,-500.0,9.999e-05,2]
[348487545,1736572241077,-500.0,9.999e-05,2]
[348487546,1736572241087,-500.0,9.999e-05,2]
[348487547,1736572241097,-500.0,9.999e-05,2]
[348487548,1736572241107,-500.0,9.999e-05,2]
[348487549,1736572241117,-817.44,9.999e-05,2]
[348487550,1736572241126,-500.0,9.999e-05,2]
[348487551,1736572241137,-500.0,9.999e-05,2]
[348487552,1736572241147,-500.0,9.999e-05,2]
[348487553,1736572241157,-500.0,9.999e-05,2]
[348487554,1736572241167,-500.0,9.999e-05,2]
[348487555,1736572241176,-500.0,9.999e-05,2]
[348487556,1736572241186,-500.0,9.999e-05,2]
[348487557,1736572241197,-849.97,9.999e-05,2]
[348487558,1736572241207,-500.0,9.999e-05,2]
[348487559,1736572241217,-254.35,9.999e-05,2]
[348487560,1736572241227,-500.0,9.999e-05,2]
[348487561,1736572241237,-500.0,9.999e-05,2]
[348487562,1736572241247,-500.0,9.999e-05,2]
[348487563,1736572241256,-500.0,9.999e-05,2]
[348487564,1736572241267,-500.0,9.999e-05,2]
[348487565,1736572241278,-576.698886,9.999e-05,2]
[348487566,1736572241288,-500.0,9.999e-05,2]
[348487567,1736572241298,-500.0,9.999e-05,2]
[348487568,1736572241309,-500.0,9.999e-05,2]
[348487569,1736572241319,-500.0,9.999e-05,2]
[348487570,1736572241329,-508.22513307,9.999e-05,2]
[348487571,1736572241339,-500.0,9.999e-05,2]
[348487572,1736572241349,-366.303424,9.999e-05,2]
[348487573,1736572241359,-500.0,9.999e-05,2]
[348487574,1736572241370,-1032.3,9.999e-05,2]
[348487575,1736572241380,-1023.31,9.999e-05,2]
[348487576,1736572241390,-500.0,9.999e-05,2]
[348487577,1736572241400,-500.0,9.999e-05,2]
[348487578,1736572241410,-257.13387137,9.999e-05,2]
[348487579,1736572241420,-372.80077324,9.999e-05,2]
[348487580,1736572241430,-500.0,9.999e-05,2]
[348487581,1736572241440,-500.0,9.999e-05,2]
[348487582,1736572241450,-577.7468007,9.999e-05,2]
[348487583,1736572241460,-500.0,9.999e-05,2]
[348487584,1736572241470,-184.92526353,9.999e-05,2]
[348487585,1736572241479,-500.0,9.999e-05,2]
[348487586,1736572241490,-171.31737795,9.999e-05,2]
[348487587,1736572241500,-1670.67,9.999e-05,2]
[348487588,1736572241510,-1960.06,9.999e-05,2]
[348487589,1736572241520,-500.0,9.999e-05,2]
[348487590,1736572241530,-489.52,9.999e-05,2]
[348487591,1736572241539,-500.0,9.999e-05,2]
[348487592,1736572241551,-500.0,9.999e-05,2]
[348487593,1736572241561,-500.0,9.999e-05,2]
[348487594,1736572241571,-500.0,9.999e-05,2]
[348487595,1736572241580,-500.0,9.999e-05,2]
[348487596,1736572241922,-500.0,9.999e-05,2]
[348487597,1736572241934,-1043.42,9.999e-05,2]
[348487598,1736572241943,-755.32,9.999e-05,2]
[348487599,1736572241953,-500.0,9.999e-05,2]
[348487600,1736572241963,-500.0,9.999e-05,2]
[348487601,1736572241972,-500.0,9.999e-05,2]
[348487602,1736572241982,-1162.85,9.999e-05,2]
[348487603,1736572241992,-561.35015774,9.999e-05,2]
[348487604,1736572242002,-508.15645446,9.999e-05,2]
[348487605,1736572242012,-891.96,9.999e-05,2]
[348487606,1736572242022,-500.0,9.999e-05,2]
[348487607,1736572242032,-500.0,9.999e-05,2]
[348487608,1736572242042,-560.28,9.999e-05,2]
[348487609,1736572242052,-568.99,9.999e-05,2]
[348487610,1736572242061,-1377.04,9.999e-05,2]
[348487611,1736572242071,-500.0,9.999e-05,2]
[348487612,1736572242080,-3105.83,9.999e-05,2]
[348487613,1736572242090,-889.75,9.999e-05,2]
[348487614,1736572242099,-513.04442854,9.999e-05,2]
[348487615,1736572242114,-500.0,9.999e-05,2]
[348487616,1736572242124,-506.38510219,9.999e-05,2]
[348487617,1736572242133,-500.0,9.999e-05,2]
[348487618,1736572242143,-500.0,9.999e-05,2]
[348487619,1736572242154,-500.0,9.999e-05,2]
[348487620,1736572242163,-500.0,9.999e-05,2]
[348487621,1736572242173,-500.0,9.999e-05,2]
[348487622,1736572242183,-500.0,9.999e-05,2]
[348487623,1736572242193,-500.0,9.999e-05,2]
[348487624,1736572242202,-500.0,9.999e-05,2]
[348487625,1736572242211,-500.0,9.999e-05,2]
[348487626,1736572242221,-500.0,9.999e-05,2]
[348487627,1736572242232,-246.13749211,9.999e-05,2]
[348487628,1736572242249,-253.86250789,9.999e-05,2]
[348487629,1736572242260,-53.84918218,9.999e-05,2]
[348487630,1736572242282,-446.15081782,9.999e-05,2]
[348487631,1736572242292,-1947.62,9.999e-05,2]
[348487632,1736572242302,-500.0,9.999e-05,2]
[348487633,1736572242311,-500.0,9.999e-05,2]
[348487634,1736572242321,-198.09456107,9.999e-05,2]
[348487635,1736572242337,-427.31543893,9.999e-05,2]
[348487636,1736572242347,-245.73271136,9.999e-05,2]
[348487637,1736572242357,-500.0,9.999e-05,2]
[348487638,1736572242367,-264.50273628,9.999e-05,2]
[348487639,1736572242378,-32.14025213,9.999e-05,2]
[348487644,1736572243057,-467.85974787,9.999e-05,2]
[348487645,1736572243068,-1446.52134136,9.999e-05,2]
[348487646,1736572243079,-380.98865864,9.999e-05,2]
[348487647,1736572243089,-726.84,9.999e-05,2]
[348487648,1736572243099,-1115.05,9.999e-05,2]
[348487649,1736572243109,-679.77,9.999e-05,2]
[348487650,1736572243118,-500.0,9.999e-05,2]
[348487651,1736572243128,-500.0,9.999e-05,2]
[348487652,1736572243138,-500.0,9.999e-05,2]
[348487653,1736572243148,-500.0,9.999e-05,2]
[348487654,1736572243157,-500.0,9.999e-05,2]
[348487655,1736572243168,-500.0,9.999e-05,2]
[348487656,1736572243178,-500.0,9.999e-05,2]
[348487657,1736572243189,-500.0,9.999e-05,2]
[348487658,1736572243199,-240.28771284,9.999e-05,2]
[348487659,1736572243209,-500.0,9.999e-05,2]
[348487660,1736572243219,-500.0,9.999e-05,2]
[348487661,1736572243229,-1744.24,9.999e-05,2]
[348487662,1736572243238,-500.0,9.999e-05,2]
[348487663,1736572243247,-436.90938805,9.999e-05,2]
[348487664,1736572243257,-500.0,9.999e-05,2]
[348487665,1736572243266,-1960.08,9.999e-05,2]
[348487666,1736572243276,-500.0,9.999e-05,2]
[348487667,1736572243287,-500.0,9.999e-05,2]
[348487668,1736572243296,-634.65585695,9.999e-05,2]
[348487669,1736572243306,-500.0,9.999e-05,2]
[348487670,1736572243316,-500.0,9.999e-05,2]
[348487671,1736572243325,-571.98,9.999e-05,2]
[348487672,1736572243335,-500.0,9.999e-05,2]
[348487673,1736572243345,-1002.79,9.999e-05,2]
[348487674,1736572243355,-1846.01,9.999e-05,2]
[348487675,1736572243365,-503.59764652,9.999e-05,2]
[348487676,1736572243375,-500.0,9.999e-05,2]
[348487677,1736572243384,-500.0,9.999e-05,2]
[348487678,1736572243395,-508.5005226,9.999e-05,2]
[348487679,1736572243404,-500.0,9.999e-05,2]
[348487680,1736572243414,-2034.34,9.999e-05,2]
[348487681,1736572243423,-511.64127644,9.999e-05,2]
[348487682,1736572243433,-500.0,9.999e-05,2]
[348487683,1736572243443,-1176.01,9.999e-05,2]
[348487684,1736572243452,-506.40241836,9.999e-05,2]
[348487685,1736572243462,-1663.86,9.999e-05,2]
[348487686,1736572243472,-500.0,9.999e-05,2]
[348487687,1736572243482,-500.0,9.999e-05,2]
[348487688,1736572243491,-375.61225697,9.999e-05,2]
[348487689,1736572243501,-500.0,9.999e-05,2]
[348487690,1736572243511,-500.0,9.999e-05,2]
[348487691,1736572243521,-803.24,9.999e-05,2]
[348487692,1736572243530,-505.98167575,9.999e-05,2]
[348487693,1736572243540,-500.0,9.999e-05,2]
[348487694,1736572243550,-1137.89,9.999e-05,2]
[348487695,1736572243559,-3040.63,9.999e-05,2]
[348487696,1736572243569,-500.0,9.999e-05,2]
[348487697,1736572243579,-511.62,9.999e-05,2]
[348487698,1736572243588,-513.78945983,9.999e-05,2]
[348487699,1736572243598,-542.22,9.999e-05,2]
[348487700,1736572243608,-506.16614091,9.999e-05,2]
[348487701,1736572243617,-758.88,9.999e-05,2]
[348487702,1736572243627,-500.0,9.999e-05,2]
[348487703,1736572243636,-999.59,9.999e-05,2]
[348487704,1736572243646,-500.0,9.999e-05,2]
[348487705,1736572243655,-500.0,9.999e-05,2]
[348487706,1736572243665,-506.41671483,9.999e-05,2]
[348487707,1736572243675,-500.0,9.999e-05,2]
[348487708,1736572243685,-1928.12,9.999e-05,2]
[348487709,1736572243706,-794.88,9.999e-05,2]
[348487710,1736572243716,-515.71,9.999e-05,2]
[348487711,1736572243727,-1402.0,0.0001,2]
[348487712,1736572243736,-151794.49692898,0.0001,2]
[348487713,1736572243768,-16268.07293523,0.0001,2]
[348487714,1736572243787,-19537.92794647,0.0001,2]
[348487715,1736572245707,-356.20926424,9.989e-05,2]
[348487716,1736572245719,-143.79073576,9.989e-05,2]
[348487717,1736572245729,-207.84017639,9.989e-05,2]
[348487718,1736572245739,-27.15203501,0.0001,2]
[348487719,1736572245750,-813.5,0.0001,2]
[348487720,1736572245873,-937.69234994,0.0001,2]
[348487723,1736572395738,784.57,8.219e-05,2]
[348487725,1736573249067,516.9,8.2e-05,2]
[348487726,1736573299041,802.45,8.219e-05,2]
[348487731,1736573432067,-1189.367004,9.001e-05,2]
[348487732,1736573432140,-450.653,9.001e-05,2]
[348487733,1736573432152,-3853.149996,9.001e-05,2]
[348487734,1736573432162,-262.54,9.022e-05,2]
[348487735,1736573432172,-1000.0,9.092e-05,2]
[348487736,1736573432181,-250.0,9.157e-05,2]
[348487737,1736573432191,-591.66,9.159e-05,2]
[348487738,1736573432201,-1530.99,9.184e-05,2]
[348487739,1736573432210,-824.52,9.207e-05,2]
[348487740,1736573432220,-250.0,9.207e-05,2]
[348487741,1736573432230,-275.792,9.5e-05,2]
[348487742,1736573432240,-150.0,9.621e-05,2]
[348487743,1736573432250,-168.01,9.622e-05,2]
[348487744,1736573432260,-999.99,9.622e-05,2]
[348487745,1736573432269,-150.99,9.622e-05,2]
[348487746,1736573432279,-299.99,9.622e-05,2]
[348487747,1736573432289,-1154.93928565,9.622e-05,2]
[348487748,1736573432362,-5022.83878383,9.622e-05,2]
[348487750,1736573432375,-3216.76193052,9.622e-05,2]
[348487752,1736573432384,-7710.73,9.622e-05,2]
[348487754,1736573432394,-173.16,9.779e-05,2]
[348487756,1736573432403,-5000.0,9.8e-05,2]
[348487758,1736573432414,-297.2003,9.89e-05,2]
[348487760,1736573432423,-57096.24617543,9.89e-05,2]
[348487762,1736573432434,-28523.9674465,9.89e-05,2]
[348487764,1736573432444,-764.44,9.899e-05,2]
[348487766,1736573432453,-500.0,9.899e-05,2]
[348487768,1736573432463,-1198.97,9.899e-05,2]
[348487770,1736573432472,-952.97,9.899e-05,2]
[348487772,1736573432482,-853.43,9.899e-05,2]
[348487774,1736573432492,-542.38,9.899e-05,2]
[348487776,1736573432501,-1656.01,9.899e-05,2]
[348487777,1736573432511,-500.0,9.899e-05,2]
[348487778,1736573432520,-500.0,9.899e-05,2]
[348487779,1736573432531,-500.0,9.899e-05,2]
[348487780,1736573432540,-500.0,9.899e-05,2]
[348487781,1736573432550,-582.15558254,9.899e-05,2]
[348487782,1736573432560,-500.0,9.899e-05,2]
[348487783,1736573432569,-500.0,9.899e-05,2]
[348487784,1736573432579,-500.0,9.899e-05,2]
[348487785,1736573432588,-500.0,9.899e-05,2]
[348487786,1736573432597,-500.0,9.899e-05,2]
[348487787,1736573432607,-1033.77,9.899e-05,2]
[348487788,1736573432616,-50892.08432217,9.9e-05,2]
[348488299,1736573437748,-312.83604618,9.899e-05,2]
[348488324,1736573438082,-187.16395382,9.899e-05,2]
[348488326,1736573438093,-500.0,9.899e-05,2]
[348488328,1736573438104,-190363.04209913,9.9e-05,2]
[348488330,1736573438115,-1577.721,9.988e-05,2]
[348488332,1736573438124,-173.265,9.988e-05,2]
[348488334,1736573438133,-500.0,9.989e-05,2]
[348488337,1736573438145,-500.0,9.989e-05,2]
[348488339,1736573438155,-500.0,9.989e-05,2]
[348488341,1736573438165,-500.0,9.989e-05,2]
[348488343,1736573438174,-500.0,9.989e-05,2]
[348488344,1736573438183,-500.0,9.989e-05,2]
[348488347,1736573438193,-500.0,9.989e-05,2]
[348488348,1736573438203,-500.0,9.989e-05,2]
[348488351,1736573438214,-381.5816534,9.989e-05,2]
[348488353,1736573438223,-500.0,9.989e-05,2]
[348488355,1736573438233,-500.0,9.989e-05,2]
[348488356,1736573438242,-524.62267878,9.989e-05,2]
[348488357,1736573438251,-500.0,9.989e-05,2]
[348488358,1736573438261,-500.0,9.989e-05,2]
[348488359,1736573438272,-500.0,9.989e-05,2]
[348488360,1736573438281,-500.0,9.989e-05,2]
[348488361,1736573438291,-500.0,9.989e-05,2]
[348488362,1736573438300,-1148.84,9.989e-05,2]
[348488363,1736573438309,-1352.98,9.989e-05,2]
[348488364,1736573438319,-1987.80677444,9.989e-05,2]
[348488365,1736573438348,-165.58322556,9.989e-05,2]
[348488366,1736573438358,-500.0,9.989e-05,2]
[348488367,1736573438367,-500.0,9.989e-05,2]
[348488368,1736573438376,-620.19,9.989e-05,2]
[348488369,1736573438386,-1812.87,9.989e-05,2]
[348488370,1736573438395,-1120.36,9.989e-05,2]
[348488372,1736573438405,-500.0,9.989e-05,2]
[348488374,1736573438414,-1959.32,9.989e-05,2]
[348488376,1736573438424,-548.14,9.989e-05,2]
[348488378,1736573438433,-500.0,9.989e-05,2]
[348488380,1736573438442,-1164.11,9.989e-05,2]
[348488382,1736573438452,-164.16020116,9.989e-05,2]
[348488385,1736573438463,-630.17979884,9.989e-05,2]
[348488387,1736573438473,-2943.82020116,9.99e-05,2]
[348488390,1736573438492,-247056.17979884,9.99e-05,2]
[348488392,1736573438502,-11439.924282,9.992e-05,2]
[348488394,1736573438515,-4454.644297,9.992e-05,2]
[348488396,1736573438525,-1407.8096441,9.992e-05,2]
[348488398,1736573438534,-2776.3595498,9.992e-05,2]
[348488400,1736573438544,-500.0,9.997e-05,2]
[348488402,1736573438554,-651.44,9.997e-05,2]
[348488404,1736573438564,-961.01,9.997e-05,2]
[348488406,1736573438573,-1594.53,9.997e-05,2]
[348488408,1736573438583,-1929.74071484,9.997e-05,2]
[348488410,1736573438595,-984.19928516,9.997e-05,2]
[348488412,1736573438605,-500.0,9.997e-05,2]
[348488414,1736573438615,-500.0,9.997e-05,2]
[348488417,1736573438626,-500.0,9.997e-05,2]
[348488419,1736573438635,-459.64313831,9.997e-05,2]
[348488421,1736573438647,-1211.36686169,9.997e-05,2]
[348488423,1736573438657,-500.0,9.997e-05,2]
[348488425,1736573438667,-500.0,9.997e-05,2]
[348488427,1736573438679,-834.9,9.997e-05,2]
[348488429,1736573438688,-500.0,9.998e-05,2]
[348488431,1736573438698,-500.0,9.998e-05,2]
[348488433,1736573438708,-500.0,9.998e-05,2]
[348488435,1736573438717,-652.83,9.998e-05,2]
[348488437,1736573438727,-503.52313004,9.998e-05,2]
[348488439,1736573438736,-143.12561143,9.998e-05,2]
[348488441,1736573438748,-356.87438857,9.998e-05,2]
[348488443,1736573438757,-500.0,9.998e-05,2]
[348488445,1736573438767,-103.12561143,9.998e-05,2]
[348488447,1736573438778,-909.08438857,9.998e-05,2]
[348488449,1736573438787,-1643.94,9.998e-05,2]
[348488451,1736573438797,-744.68,9.998e-05,2]
[348488453,1736573438807,-566.11,9.998e-05,2]
[348488456,1736573438816,-582.584449,9.998e-05,2]
[348488458,1736573438827,-362.22762,9.998e-05,2]
[348488460,1736573438836,-156.516091,9.998e-05,2]
[348488462,1736573438846,-156.638759,9.998e-05,2]
[348488463,1736573438856,-1923.48,9.998e-05,2]
[348488464,1736573438865,-500.0,9.998e-05,2]
[348488467,1736573438875,-609.22607385,9.998e-05,2]
[348488469,1736573438885,-500.0,9.998e-05,2]
[348488471,1736573438894,-527.27758482,9.998e-05,2]
[348488473,1736573438904,-500.0,9.998e-05,2]
[348488475,1736573438914,-2013.9,9.998e-05,2]
[348488477,1736573438924,-14.87052899,9.999e-05,2]
[348488479,1736573438936,-451.15504761,9.999e-05,2]
[348488481,1736573438957,-601.78,9.997e-05,2]
[348488482,1736573438966,-33.9744234,9.999e-05,2]
[348488483,1736573438976,-500.0,9.999e-05,2]
[348488484,1736573438985,-500.0,9.999e-05,2]
[348488485,1736573438995,-780.05,9.999e-05,2]
[348488486,1736573439293,-504.17949598,9.999e-05,2]
[348488487,1736573439304,-500.0,9.999e-05,2]
[348488488,1736573439314,-506.56644472,9.999e-05,2]
[348488489,1736573439324,-500.0,9.999e-05,2]
[348488490,1736573439334,-500.0,9.999e-05,2]
[348488491,1736573439344,-500.0,9.999e-05,2]
[348488492,1736573439354,-500.0,9.999e-05,2]
[348488493,1736573439364,-500.0,9.999e-05,2]
[348488494,1736573439374,-500.0,9.999e-05,2]
[348488495,1736573439383,-500.0,9.999e-05,2]
[348488496,1736573439393,-500.0,9.999e-05,2]
[348488497,1736573439403,-500.0,9.999e-05,2]
[348488498,1736573439413,-251.29008618,9.999e-05,2]
[348488499,1736573439423,-500.0,9.999e-05,2]
[348488500,1736573439433,-500.0,9.999e-05,2]
[348488501,1736573439443,-500.0,9.999e-05,2]
[348488502,1736573439454,-500.0,9.999e-05,2]
[348488503,1736573439463,-1313.12,9.999e-05,2]
[348488504,1736573439473,-413.64809816,9.999e-05,2]
[348488505,1736573439483,-500.0,9.999e-05,2]
[348488506,1736573439492,-500.0,9.999e-05,2]
[348488507,1736573439501,-500.0,9.999e-05,2]
[348488508,1736573439511,-1079.76,9.999e-05,2]
[348488509,1736573439521,-500.0,9.999e-05,2]
[348488510,1736573439531,-650.35,9.999e-05,2]
[348488511,1736573439540,-500.0,9.999e-05,2]
[348488512,1736573439550,-500.0,9.999e-05,2]
[348488513,1736573439559,-333.72012617,9.999e-05,2]
[348488514,1736573439570,-500.0,9.999e-05,2]
[348488515,1736573439584,-323.61599215,9.999e-05,2]
[348488518,1736573439598,-268.0504703,9.999e-05,2]
[348488520,1736573439612,-516.58,9.999e-05,2]
[348488522,1736573439622,-500.0,9.999e-05,2]
[348488524,1736573439632,-500.8577625,9.999e-05,2]
[348488527,1736573439642,-500.0,9.999e-05,2]
[348488529,1736573439653,-512.28426904,9.999e-05,2]
[348488531,1736573439663,-540.34,9.999e-05,2]
[348488533,1736573439673,-201.08164292,9.999e-05,2]
[348488535,1736573439685,-298.91835708,9.999e-05,2]
[348488537,1736573439695,-567.64106834,9.999e-05,2]
[348488539,1736573439705,-108.2411847,9.999e-05,2]
[348488568,1736573439974,-264.339999,9.999e-05,2]
[348488571,1736573439993,-197.8488163,9.999e-05,2]
[348488573,1736573440003,-500.0,9.999e-05,2]
[348488575,1736573440014,-398.92175675,9.999e-05,2]
[348488580,1736573440057,-101.07824325,9.999e-05,2]
[348488581,1736573440067,-500.0,9.999e-05,2]
[348488582,1736573440078,-500.0,9.999e-05,2]
[348488583,1736573440094,-507.00241384,9.999e-05,2]
[348488584,1736573440105,-500.0,9.999e-05,2]
[348488585,1736573440114,-500.0,9.999e-05,2]
[348488586,1736573440124,-510.41725396,9.999e-05,2]
[348488587,1736573440133,-518.03228948,9.999e-05,2]
[348488588,1736573440143,-616.85890222,9.999e-05,2]
[348488589,1736573440153,-679.25,9.999e-05,2]
[348488590,1736573440162,-32.91089725,9.999e-05,2]
[348488593,1736573440175,-467.08910275,9.999e-05,2]
[348488595,1736573440185,-500.0,9.999e-05,2]
[348488597,1736573440195,-500.0,9.999e-05,2]
[348488599,1736573440204,-500.0,9.999e-05,2]
[348488601,1736573440214,-16.54286131,9.999e-05,2]
[348488603,1736573440226,-483.45713869,9.999e-05,2]
[348488605,1736573440236,-500.0,9.999e-05,2]
[348488607,1736573440246,-500.0,9.999e-05,2]
[348488609,1736573440256,-500.0,9.999e-05,2]
[348488611,1736573440267,-500.0,9.999e-05,2]
[348488612,1736573440276,-500.0,9.999e-05,2]
[348488613,1736573440286,-538.35495729,9.999e-05,2]
[348488614,1736573440298,-500.92706138,9.999e-05,2]
[348488616,1736573440308,-500.0,9.999e-05,2]
[348488618,1736573440318,-500.0,9.999e-05,2]
[348488620,1736573440328,-862.97,9.999e-05,2]
[348488622,1736573440338,-500.0,9.999e-05,2]
[348488624,1736573440347,-500.0,9.999e-05,2]
[348488626,1736573440357,-502.40944064,9.999e-05,2]
[348488628,1736573440368,-500.0,9.999e-05,2]
[348488630,1736573440378,-500.0,9.999e-05,2]
[348488632,1736573440388,-500.0,9.999e-05,2]
[348488634,1736573440398,-503.66915453,9.999e-05,2]
[348488636,1736573440407,-500.0,9.999e-05,2]
[348488638,1736573440417,-500.0,9.999e-05,2]
[348488640,1736573440427,-500.0,9.999e-05,2]
[348488642,1736573440437,-1103.72,9.999e-05,2]
[348488644,1736573440446,-500.0,9.999e-05,2]
[348488646,1736573440456,-957.94,9.999e-05,2]
[348488648,1736573440465,-500.0,9.999e-05,2]
[348488650,1736573440475,-500.0,9.999e-05,2]
[348488652,1736573440485,-500.0,9.999e-05,2]
[348488654,1736573440495,-500.0,9.999e-05,2]
[348488656,1736573440504,-500.0,9.999e-05,2]
[348488658,1736573440514,-500.0,9.999e-05,2]
[348488660,1736573440524,-500.0,9.999e-05,2]
[348488662,1736573440534,-500.0,9.999e-05,2]
[348488664,1736573440544,-500.0,9.999e-05,2]
[348488666,1736573440554,-627.49,9.999e-05,2]
[348488668,1736573440565,-500.0,9.999e-05,2]
[348488670,1736573440574,-994.88,9.999e-05,2]
[348488672,1736573440584,-514.9440748,9.999e-05,2]
[348488674,1736573440594,-181.69417268,9.999e-05,2]
[348488677,1736573440607,-407.62657398,9.999e-05,2]
[348488679,1736573440616,-500.0,9.999e-05,2]
[348488681,1736573440626,-500.0,9.999e-05,2]
[348488683,1736573440636,-500.0,9.999e-05,2]
[348488685,1736573440646,-500.0,9.999e-05,2]
[348488687,1736573440656,-500.0,9.999e-05,2]
[348488689,1736573440666,-500.0,9.999e-05,2]
[348488691,1736573440676,-500.0,9.999e-05,2]
[348488693,1736573440685,-500.0,9.999e-05,2]
[348488695,1736573440695,-748.21,9.999e-05,2]
[348488697,1736573440705,-584.46205991,9.999e-05,2]
[348488699,1736573440718,-1263.31794009,9.999e-05,2]
[348488701,1736573440727,-508.17953391,9.999e-05,2]
[348488703,1736573440737,-510.74127055,9.999e-05,2]
[348488705,1736573440747,-553.30221765,9.999e-05,2]
[348488708,1736573440757,-500.0,9.999e-05,2]
[348488710,1736573440769,-500.0,9.999e-05,2]
[348488712,1736573440778,-500.0,9.999e-05,2]
[348488714,1736573440788,-500.0,9.999e-05,2]
[348488716,1736573440799,-500.0,9.999e-05,2]
[348488718,1736573440808,-500.0,9.999e-05,2]
[348488719,1736573440818,-500.0,9.999e-05,2]
[348488720,1736573440828,-508.08931184,9.999e-05,2]
[348488722,1736573440837,-500.0,9.999e-05,2]
[348488724,1736573440847,-500.0,9.999e-05,2]
[348488726,1736573440857,-549.42027639,9.999e-05,2]
[348488727,1736573440866,-150.91,9.999e-05,2]
[348488728,1736573440876,-500.0,9.999e-05,2]
[348488729,1736573440886,-2238.37,9.999e-05,2]
[348488730,1736573440896,-873.51,9.999e-05,2]
[348488731,1736573440906,-915.19,9.999e-05,2]
[348488732,1736573440916,-515.05,9.999e-05,2]
[348488733,1736573440925,-501.82312075,9.999e-05,2]
[348488734,1736573440935,-500.0,9.999e-05,2]
[348488735,1736573440945,-500.0,9.999e-05,2]
[348488736,1736573440956,-500.0,9.999e-05,2]
[348488737,1736573440965,-500.0,9.999e-05,2]
[348488739,1736573440976,-500.0,9.999e-05,2]
[348488741,1736573440986,-536.14516394,9.999e-05,2]
[348488742,1736573440996,-500.0,9.999e-05,2]
[348488744,1736573441005,-500.0,9.999e-05,2]
[348488746,1736573441015,-500.0,9.999e-05,2]
[348488748,1736573441025,-500.0,9.999e-05,2]
[348488750,1736573441036,-500.0,9.999e-05,2]
[348488752,1736573441046,-1990.81,9.999e-05,2]
[348488754,1736573441056,-2301.89,9.999e-05,2]
[348488756,1736573441066,-654.77730388,9.999e-05,2]
[348488758,1736573441079,-389.52269612,9.999e-05,2]
[348488760,1736573441090,-500.0,9.999e-05,2]
[348488762,1736573441104,-980.67,9.999e-05,2]
[348488765,1736573441114,-500.0,9.999e-05,2]
[348488767,1736573441124,-500.0,9.999e-05,2]
[348488769,1736573441134,-500.0,9.999e-05,2]
[348488771,1736573441145,-513.93662046,9.999e-05,2]
[348488773,1736573441155,-245.8142727,9.999e-05,2]
[348488775,1736573441165,-539.04018271,9.999e-05,2]
[348488777,1736573441177,-95.17527801,9.999e-05,2]
[348488779,1736573441190,-404.82472199,9.999e-05,2]
[348488781,1736573441200,-502.21703234,9.999e-05,2]
[348488783,1736573441210,-508.90579229,9.999e-05,2]